bitfinex/quotes_BTCUSD_20250901
["timestamp","ask_amount","ask_price","bid_price","bid_amount"]
[1756694344152,0.5351258,107740.0,107730.0,0.17038]
[1756694344988,0.18563207,107740.0,107730.0,0.17138]
[1756694345244,0.5351258,107740.0,107730.0,0.17138]
[1756694345827,0.5351258,107740.0,107730.0,0.17238]
[1756694346030,0.5351258,107740.0,107730.0,0.16416]
[1756694346436,0.18563207,107740.0,107730.0,0.16416]
[1756694346666,0.5351258,107740.0,107730.0,0.16416]
[1756694346985,0.5351258,107740.0,107730.0,0.16316]
[1756694347767,0.5351258,107740.0,107730.0,0.16216]
[1756694348121,0.5361258,107740.0,107730.0,0.16216]
[1756694348758,0.5351258,107740.0,107730.0,0.16216]
[1756694348923,0.5361258,107740.0,107730.0,0.16216]
[1756694350544,0.5361258,107740.0,107730.0,0.25514001]
[1756694354203,0.1856493,107730.0,107720.0,0.29060701]
[1756694354409,0.53514303,107730.0,107720.0,0.55396702]
[1756694355377,0.53514303,107730.0,107720.0,0.55410937]
[1756694355791,0.53514303,107730.0,107720.0,0.55510937]
[1756694356796,0.53514303,107730.0,107720.0,0.30234236]
[1756694356992,0.53514303,107730.0,107720.0,0.10234236]
[1756694357192,0.53514303,107730.0,107720.0,0.17148235]
[1756694361062,0.1856493,107730.0,107720.0,0.17148235]
[1756694361267,0.53514303,107730.0,107720.0,0.17148235]
[1756694361466,0.1856493,107730.0,107720.0,0.46678319]
[1756694361690,0.1856493,107730.0,107720.0,0.46446236]
[1756694362471,0.1856493,107730.0,107720.0,0.66446236]
[1756694362667,0.18563207,107740.0,107720.0,0.85012872]
[1756694362867,0.18563207,107740.0,107730.0,0.09298001]
[1756694363792,0.18663207,107740.0,107730.0,0.09298001]
[1756694364190,0.18663207,107740.0,107730.0,0.18283272]
[1756694364419,0.18563207,107740.0,107730.0,0.18283272]
[1756694364820,0.18763207,107740.0,107730.0,0.18283272]
[1756694365031,0.18663207,107740.0,107730.0,0.18283272]
[1756694365496,0.002,107740.0,107730.0,0.36848202]
[1756694365668,0.002,107740.0,107730.0,0.71797575]
[1756694365849,0.002,107740.0,107730.0,0.36848202]
[1756694368409,0.18763207,107740.0,107730.0,0.36848202]
[1756694368606,0.18763207,107740.0,107730.0,0.40999382]
[1756694368806,0.002,107740.0,107730.0,0.40999382]
[1756694369612,0.002,107740.0,107730.0,0.74533669]
[1756694370020,0.002,107740.0,107730.0,0.75355669]
[1756694370434,0.001,107740.0,107730.0,1.15355669]
[1756694371155,0.18561592,107750.0,107740.0,0.4]
[1756694371384,0.18561592,107750.0,107740.0,0.66324001]
[1756694371604,0.18561592,107750.0,107740.0,0.50120001]
[1756694371809,0.18561592,107750.0,107740.0,0.66320001]
[1756694371995,0.52095879,107750.0,107740.0,0.49298001]
[1756694372197,0.52095879,107750.0,107740.0,0.65498001]
[1756694372436,0.52095879,107750.0,107730.0,0.07236]
[1756694372644,0.52095879,107750.0,107730.0,0.25598001]
[1756694372645,0.52328236,107740.0,107730.0,0.25598001]
[1756694372856,0.52097494,107740.0,107730.0,0.25598001]
[1756694373475,0.52097494,107740.0,107730.0,0.25498001]
[1756694374440,0.18663207,107740.0,107730.0,0.25498001]
[1756694374782,0.18763207,107740.0,107730.0,0.25498001]
[1756694375188,0.52297494,107740.0,107730.0,0.25498001]
[1756694375750,0.52297494,107740.0,107730.0,0.09298001]
[1756694375955,0.53711368,107740.0,107730.0,0.25494001]
[1756694376807,0.53711368,107740.0,107730.0,0.09298001]
[1756694377001,0.53711368,107740.0,107730.0,0.25494001]
[1756694377845,0.18763207,107740.0,107730.0,0.09298001]
[1756694377970,0.53711368,107740.0,107730.0,0.09298001]
[1756694378171,0.53711368,107740.0,107730.0,0.25494001]
[1756694378867,0.18763207,107740.0,107730.0,0.25494001]
[1756694379076,0.53711368,107740.0,107730.0,0.16196]
[1756694379926,0.18763207,107740.0,107730.0,0.16196]
[1756694380106,0.53711368,107740.0,107730.0,0.16196]
[1756694383198,0.1856493,107730.0,107720.0,0.21863506]
[1756694383407,0.17054596,107730.0,107720.0,0.48175507]
[1756694383616,0.52233499,107730.0,107720.0,0.48175507]
[1756694383815,0.52002757,107730.0,107720.0,0.46326236]
[1756694384159,0.17054596,107730.0,107720.0,0.46326236]
[1756694384365,0.17285338,107730.0,107720.0,0.46326236]
[1756694384793,0.17285338,107730.0,107720.0,0.46426236]
[1756694386871,0.17285338,107730.0,107720.0,0.48275507]
[1756694388785,0.18563207,107740.0,107720.0,1.16790322]
[1756694388986,0.18563207,107740.0,107730.0,0.16434001]
[1756694389399,0.18563207,107740.0,107730.0,0.32622001]
[1756694390046,0.18663207,107740.0,107730.0,0.32622001]
[1756694390252,0.18763207,107740.0,107730.0,0.32622001]
[1756694390626,0.18563207,107740.0,107730.0,0.32622001]
[1756694390981,0.18763207,107740.0,107730.0,0.32622001]
[1756694393443,0.17252996,107740.0,107730.0,0.32622001]
[1756694394917,0.17483738,107740.0,107730.0,0.32622001]
[1756694395502,0.17483738,107740.0,107730.0,0.16434001]
[1756694395674,0.17483738,107740.0,107730.0,0.32614001]
[1756694397494,0.52431899,107740.0,107730.0,0.32614001]
[1756694397695,0.52201157,107740.0,107730.0,0.32614001]
[1756694398055,0.17252996,107740.0,107730.0,0.32614001]
[1756694398256,0.51030885,107740.0,107730.0,0.32614001]
[1756694398458,0.50800143,107740.0,107730.0,0.16434001]
[1756694398662,0.50800143,107740.0,107730.0,0.32614001]
[1756694399574,0.50800143,107740.0,107730.0,0.32610001]
[1756694401593,0.50800143,107740.0,107730.0,0.16434001]
[1756694401796,0.50800143,107740.0,107730.0,0.09298001]
[1756694402038,0.50800143,107740.0,107730.0,0.25474001]
[1756694402860,0.1856493,107730.0,107720.0,0.00014235]
[1756694403075,0.1856493,107730.0,107720.0,0.26306236]
[1756694403076,0.52112077,107730.0,107720.0,0.26306236]
[1756694403440,0.50601631,107730.0,107720.0,0.17008235]
[1756694403643,0.17054484,107730.0,107720.0,0.00836235]
[1756694403842,0.8437952,107730.0,107720.0,0.00836235]
[1756694404048,0.8437952,107730.0,107720.0,0.00936235]
[1756694404049,0.84148778,107730.0,107720.0,0.00936235]
[1756694404409,1.18148778,107730.0,107720.0,0.00936235]
[1756694404616,1.19082612,107730.0,107720.0,0.00936235]
[1756694405114,1.35254612,107730.0,107720.0,0.00936235]
[1756694405335,1.35254612,107730.0,107720.0,0.00114235]
[1756694405538,1.19082612,107730.0,107720.0,0.00114235]
[1756694405950,1.35254612,107730.0,107720.0,0.00114235]
[1756694406129,1.35654612,107730.0,107720.0,0.00114235]
[1756694406533,1.35654612,107730.0,107720.0,0.00014235]
[1756694406760,1.35254612,107730.0,107720.0,0.00014235]
[1756694406968,1.36154612,107730.0,107720.0,0.00014235]
[1756694407114,1.35654612,107730.0,107720.0,0.00014235]
[1756694407698,1.36154612,107730.0,107720.0,0.00014235]
[1756694408072,1.19448778,107730.0,107720.0,0.00014235]
[1756694408270,0.52354484,107730.0,107720.0,0.00014235]
[1756694408472,1.02069631,107730.0,107720.0,0.00014235]
[1756694408727,0.51901631,107730.0,107720.0,0.00014235]
[1756694408909,0.18354484,107730.0,107720.0,0.25480236]
[1756694409119,0.51501631,107730.0,107720.0,0.25480236]
[1756694409330,0.51901631,107730.0,107720.0,0.25480236]
[1756694409526,0.51001631,107730.0,107720.0,0.25480236]
[1756694409692,0.17454484,107730.0,107720.0,0.25480236]
[1756694409893,0.17485226,107730.0,107720.0,0.45480236]
[1756694410098,0.17385226,107730.0,107720.0,0.45480236]
[1756694410531,0.17485226,107730.0,107720.0,0.45480236]
[1756694410734,0.17254484,107730.0,107720.0,0.45480236]
[1756694412397,0.17154484,107730.0,107720.0,0.30152236]
[1756694412680,0.17254484,107730.0,107720.0,0.46316236]
[1756694412881,0.17154484,107730.0,107720.0,0.46316236]
[1756694413228,0.17054484,107730.0,107720.0,0.46316236]
[1756694413461,0.15544171,107730.0,107720.0,0.45476236]
[1756694414112,0.15644171,107730.0,107720.0,0.45476236]
[1756694415193,0.15744171,107730.0,107720.0,0.45476236]
[1756694415810,0.15644171,107730.0,107720.0,0.45476236]
[1756694416014,0.15744171,107730.0,107720.0,0.45476236]
[1756694416257,0.15644171,107730.0,107720.0,0.45476236]
[1756694416692,0.12744171,107730.0,107720.0,0.09312236]
[1756694416932,0.4652206,107730.0,107720.0,0.25472236]
[1756694417154,0.46291318,107730.0,107720.0,0.25472236]
[1756694417361,0.79838465,107730.0,107720.0,0.16174235]
[1756694417573,0.46291318,107730.0,107720.0,0.16174235]
[1756694419162,0.79838465,107730.0,107720.0,0.00014235]
[1756694421144,0.46291318,107730.0,107720.0,0.00014235]
[1756694422207,0.12744171,107730.0,107720.0,0.00014235]
[1756694422422,0.4652206,107730.0,107720.0,0.00014235]
[1756694422624,0.46291318,107730.0,107720.0,0.00014235]
[1756694423476,0.1876493,107730.0,107720.0,0.09544319]
[1756694423676,0.1876493,107730.0,107720.0,0.09312236]
[1756694423908,0.002,107730.0,107720.0,0.28110973]
[1756694424059,0.00034759,107730.0,107720.0,0.2787889]
[1756694424493,0.00034759,107730.0,107720.0,0.79215337]
[1756694424663,0.18599689,107730.0,107720.0,0.79215337]
[1756694424862,0.18599689,107730.0,107720.0,0.60648683]
[1756694425064,0.18599689,107730.0,107720.0,0.27941536]
[1756694425500,0.18599689,107730.0,107720.0,0.44097536]
[1756694425714,0.18699689,107730.0,107720.0,0.44097536]
[1756694425931,0.18699689,107730.0,107720.0,0.43257536]
[1756694426191,0.1856493,107730.0,107720.0,0.43257536]
[1756694426455,0.1856493,107730.0,107720.0,0.43357536]
[1756694426654,0.1856493,107730.0,107720.0,0.43257536]
[1756694427063,0.1866493,107730.0,107720.0,0.43257536]
[1756694427513,0.1866493,107730.0,107720.0,0.43353536]
[1756694427858,0.1856493,107730.0,107720.0,0.43353536]
[1756694428004,0.1856493,107730.0,107720.0,0.43253536]
[1756694428929,0.1856493,107730.0,107720.0,0.27101536]
[1756694429131,0.1856493,107730.0,107720.0,0.43253536]
[1756694429292,0.1866493,107730.0,107720.0,0.43253536]
[1756694431518,0.1866493,107730.0,107720.0,0.43249536]
[1756694432274,0.1866493,107730.0,107720.0,0.47101536]
[1756694432506,0.1866493,107730.0,107720.0,0.63249536]
[1756694432708,0.1866493,107730.0,107720.0,0.32101536]
[1756694432905,0.53607692,107730.0,107720.0,0.45460236]
[1756694434018,0.17154617,107730.0,107720.0,0.45460236]
[1756694434741,0.17154617,107730.0,107720.0,0.48249636]
[1756694434948,0.001,107730.0,107720.0,1.16759052]
[1756694435592,0.001,107730.0,107720.0,1.18852934]
[1756694435996,0.00020331,107730.0,107720.0,1.19692934]
[1756694436453,0.18563307,107740.0,107730.0,0.1856493]
[1756694436663,0.1948927,107760.0,107740.0,0.4]
[1756694436864,0.18792226,107750.0,107740.0,0.4]
[1756694437090,0.18561484,107750.0,107740.0,0.65442001]
[1756694438499,0.18761484,107750.0,107740.0,0.65442001]
[1756694439005,0.18761484,107750.0,107740.0,0.66373254]
[1756694439443,0.18861484,107750.0,107740.0,0.66373254]
[1756694441712,0.18861484,107750.0,107740.0,0.66369254]
[1756694441963,0.18861484,107750.0,107740.0,0.50229254]
[1756694442170,0.18861484,107750.0,107740.0,0.66369254]
[1756694442673,0.18861484,107750.0,107740.0,0.66365254]
[1756694444221,0.18861484,107750.0,107740.0,0.50229254]
[1756694444441,0.18861484,107750.0,107740.0,0.66365254]
[1756694446260,0.18861484,107750.0,107740.0,0.99928461]
[1756694446429,0.18861484,107750.0,107740.0,0.84153954]
[1756694448578,0.003,107750.0,107740.0,1.02717161]
[1756694448798,0.00067195,107750.0,107740.0,1.02717161]
[1756694449273,0.00067195,107750.0,107740.0,1.36247243]
[1756694449505,0.18628679,107750.0,107740.0,1.36247243]
[1756694449729,0.18628679,107750.0,107740.0,1.02717161]
[1756694449969,0.18628679,107750.0,107740.0,1.17680036]
[1756694451358,0.18628679,107750.0,107740.0,1.01548036]
[1756694451561,0.18628679,107750.0,107740.0,1.17676036]
[1756694452282,0.18628679,107750.0,107740.0,1.01548036]
[1756694452534,0.18628679,107750.0,107740.0,1.17676036]
[1756694453840,0.18628679,107750.0,107740.0,1.17672036]
[1756694454346,0.18628679,107750.0,107740.0,1.36235243]
[1756694454550,0.18628679,107750.0,107740.0,1.17672036]
[1756694455210,0.18382734,107750.0,107740.0,1.17672036]
[1756694457001,0.18382734,107750.0,107740.0,0.84141954]
[1756694457205,0.18382734,107750.0,107740.0,1.17672036]
[1756694459317,0.18382734,107750.0,107740.0,1.01548036]
[1756694459530,0.18382734,107750.0,107740.0,1.17668036]
[1756694459738,0.16872746,107750.0,107740.0,1.17668036]
[1756694460188,0.16872746,107750.0,107740.0,0.84137954]
[1756694460734,0.16872746,107750.0,107740.0,0.68017954]
[1756694461371,0.16872746,107750.0,107740.0,0.84133954]
[1756694461575,0.17103488,107750.0,107740.0,0.48017954]
[1756694461958,0.17103488,107750.0,107740.0,0.33017954]
[1756694462170,0.5063357,107750.0,107740.0,0.28202701]
[1756694462380,0.50402828,107750.0,107740.0,0.09298001]
[1756694462600,0.18563207,107740.0,107730.0,0.07136]
[1756694462772,0.52093289,107740.0,107730.0,0.32550001]
[1756694462999,0.52093289,107740.0,107730.0,0.35339201]
[1756694463587,0.52093289,107740.0,107730.0,0.19223201]
[1756694463817,0.18563207,107740.0,107730.0,0.32550001]
[1756694464811,0.18563207,107740.0,107730.0,0.66080083]
[1756694465387,0.18563207,107740.0,107730.0,0.84645013]
[1756694465789,0.18563207,107740.0,107730.0,1.26494284]
[1756694465961,0.16872746,107750.0,107730.0,1.26494284]
[1756694466169,0.16872746,107750.0,107740.0,0.43060123]
[1756694466331,0.16872746,107750.0,107740.0,0.42828083]
[1756694466532,0.16872746,107750.0,107740.0,0.45616783]
[1756694467163,0.16972746,107750.0,107740.0,0.7917999]
[1756694467563,0.16872746,107750.0,107740.0,0.7917999]
[1756694467972,0.18661484,107750.0,107740.0,0.81273872]
[1756694468155,0.18661484,107750.0,107740.0,0.62710665]
[1756694468362,0.18761484,107750.0,107740.0,0.62710665]
[1756694468565,0.18761484,107750.0,107740.0,0.81273872]
[1756694468769,0.18661484,107750.0,107740.0,0.81273872]
[1756694469170,0.18761484,107750.0,107740.0,0.81273872]
[1756694469631,0.17251549,107750.0,107740.0,0.81273872]
[1756694470187,0.17251549,107750.0,107740.0,0.98818665]
[1756694470398,0.17251549,107750.0,107740.0,0.96724783]
[1756694470837,0.17251549,107750.0,107740.0,0.63194701]
[1756694471044,0.17251549,107750.0,107740.0,0.60406001]
[1756694473166,0.17251549,107750.0,107740.0,0.93936083]
[1756694474658,0.17251549,107750.0,107740.0,0.77828083]
[1756694474858,0.17251549,107750.0,107740.0,0.93932083]
[1756694475252,0.17251549,107750.0,107740.0,1.1249529]
[1756694475454,0.17251549,107750.0,107740.0,0.78965208]
[1756694475836,0.17251549,107750.0,107740.0,0.93928083]
[1756694476417,0.17251549,107750.0,107740.0,1.1249129]
[1756694476871,0.17251549,107750.0,107740.0,0.93928083]
[1756694478907,0.17251549,107750.0,107740.0,0.77828083]
[1756694479120,0.17251549,107750.0,107740.0,0.93924083]
[1756694479824,0.15741555,107750.0,107740.0,0.60394001]
[1756694480025,0.15741555,107750.0,107740.0,0.93924083]
[1756694481349,0.15972297,107750.0,107740.0,0.29298001]
[1756694481523,0.49502379,107750.0,107740.0,0.29298001]
[1756694481718,0.49271637,107750.0,107740.0,0.45394001]
[1756694482882,0.15741555,107750.0,107740.0,0.45394001]
[1756694483052,0.15972297,107750.0,107740.0,0.45394001]
[1756694483657,0.49502379,107750.0,107740.0,0.45394001]
[1756694483904,0.15741555,107750.0,107740.0,0.45394001]
[1756694484075,0.15972297,107750.0,107740.0,0.45394001]
[1756694485494,0.15741555,107750.0,107740.0,0.45394001]
[1756694485717,0.15741555,107750.0,107740.0,0.78924083]
[1756694485874,0.15972297,107750.0,107740.0,0.45394001]
[1756694486096,0.15741555,107750.0,107740.0,0.45394001]
[1756694487434,0.15972297,107750.0,107740.0,0.25390001]
[1756694487955,0.15972297,107750.0,107740.0,0.09298001]
[1756694488120,0.49502379,107750.0,107740.0,0.25386001]
[1756694488474,0.49271637,107750.0,107740.0,0.25386001]
[1756694488905,0.49271637,107750.0,107740.0,0.09298001]
[1756694489117,0.18563207,107740.0,107730.0,0.28985271]
[1756694489319,0.52093289,107740.0,107730.0,0.54371272]
[1756694489530,0.18563207,107740.0,107730.0,0.38283272]
[1756694489677,0.52093289,107740.0,107730.0,0.54371272]
[1756694489878,0.18563207,107740.0,107730.0,0.54371272]
[1756694490090,0.52093289,107740.0,107730.0,0.54371272]
[1756694490913,0.52093289,107740.0,107730.0,0.54471272]
[1756694491139,0.18563207,107740.0,107730.0,0.54471272]
[1756694491342,0.52093289,107740.0,107730.0,0.54471272]
[1756694494749,0.18563207,107740.0,107730.0,0.54471272]
[1756694495173,0.52093289,107740.0,107730.0,0.54471272]
[1756694496621,0.18563207,107740.0,107730.0,0.54471272]
[1756694497850,0.18563207,107740.0,107730.0,0.38383272]
[1756694498001,0.18563207,107740.0,107730.0,0.54467272]
[1756694499284,0.18563207,107740.0,107730.0,0.38383272]
[1756694499481,0.52093289,107740.0,107730.0,0.38383272]
[1756694499690,0.52093289,107740.0,107730.0,0.54463272]
[1756694500090,0.52093289,107740.0,107730.0,0.38383272]
[1756694500293,0.52093289,107740.0,107730.0,0.54463272]
[1756694502506,0.18563207,107740.0,107730.0,0.54463272]
[1756694507205,0.18563207,107740.0,107730.0,0.38383272]
[1756694507436,0.18563207,107740.0,107730.0,0.54459272]
[1756694509896,0.17052993,107740.0,107730.0,0.54459272]
[1756694511742,0.17283735,107740.0,107730.0,0.38383272]
[1756694511945,0.50813817,107740.0,107730.0,0.54455272]
[1756694512142,0.50583075,107740.0,107730.0,0.54451272]
[1756694513129,0.50583075,107740.0,107730.0,0.38383272]
[1756694513629,0.50583075,107740.0,107730.0,0.54451272]
[1756694514862,0.50583075,107740.0,107730.0,0.54458672]
[1756694515773,0.17052993,107740.0,107730.0,0.54458672]
[1756694515976,0.17283735,107740.0,107730.0,0.54458672]
[1756694516606,0.17283735,107740.0,107730.0,0.50454672]
[1756694516762,0.50813817,107740.0,107730.0,0.50454672]
[1756694516964,0.50583075,107740.0,107730.0,0.50454672]
[1756694517610,0.50583075,107740.0,107730.0,0.34390672]
[1756694517847,0.50583075,107740.0,107730.0,0.50454672]
[1756694518586,0.17052993,107740.0,107730.0,0.50454672]
[1756694518791,0.17283735,107740.0,107730.0,0.50454672]
[1756694519676,0.17283735,107740.0,107730.0,0.48605401]
[1756694520753,0.17052993,107740.0,107730.0,0.48605401]
[1756694522037,0.17283735,107740.0,107730.0,0.48601401]
[1756694522255,0.50813817,107740.0,107730.0,0.48601401]
[1756694522465,0.50583075,107740.0,107730.0,0.32541401]
[1756694522650,0.50583075,107740.0,107730.0,0.48601401]
[1756694524485,0.17052993,107740.0,107730.0,0.48601401]
[1756694524686,0.50813817,107740.0,107730.0,0.48601401]
[1756694524868,0.50583075,107740.0,107730.0,0.48601401]
[1756694525510,0.50583075,107740.0,107730.0,0.32541401]
[1756694525715,0.50583075,107740.0,107730.0,0.48601401]
[1756694526460,0.50583075,107740.0,107730.0,0.32541401]
[1756694526670,0.50583075,107740.0,107730.0,0.48597401]
[1756694527431,0.50583075,107740.0,107730.0,0.32541401]
[1756694527626,0.49072828,107740.0,107730.0,0.48597401]
[1756694528260,0.15542746,107740.0,107730.0,0.48597401]
[1756694528429,0.15773488,107740.0,107730.0,0.48597401]
[1756694529856,0.4930357,107740.0,107730.0,0.51386701]
[1756694530052,0.49072828,107740.0,107730.0,0.51386701]
[1756694530877,0.15542746,107740.0,107730.0,0.51386701]
[1756694531074,0.15773488,107740.0,107730.0,0.51386701]
[1756694532139,0.15773488,107740.0,107730.0,0.35330701]
[1756694532335,0.4930357,107740.0,107730.0,0.51382701]
[1756694532573,0.49072828,107740.0,107730.0,0.51382701]
[1756694533338,0.15542746,107740.0,107730.0,0.51382701]
[1756694533503,0.15773488,107740.0,107730.0,0.51382701]
[1756694534720,0.15773488,107740.0,107730.0,0.35330701]
[1756694534924,0.15773488,107740.0,107730.0,0.51378701]
[1756694535325,0.4930357,107740.0,107730.0,0.51378701]
[1756694535630,0.15542746,107740.0,107730.0,0.51378701]
[1756694535832,0.15773488,107740.0,107730.0,0.51378701]
[1756694536335,0.4930357,107740.0,107730.0,0.51378701]
[1756694536545,0.49072828,107740.0,107730.0,0.51378701]
[1756694538872,0.15542746,107740.0,107730.0,0.51378701]
[1756694539071,0.15773488,107740.0,107730.0,0.51378701]
[1756694541211,0.15773488,107740.0,107730.0,0.35330701]
[1756694541416,0.4930357,107740.0,107730.0,0.51374701]
[1756694541692,0.49072828,107740.0,107730.0,0.51374701]
[1756694542830,0.15542746,107740.0,107730.0,0.51374701]
[1756694543027,0.4930357,107740.0,107730.0,0.51374701]
[1756694543235,0.49072828,107740.0,107730.0,0.51374701]
[1756694543944,0.49072828,107740.0,107730.0,0.51370701]
[1756694547565,0.15542746,107740.0,107730.0,0.51370701]
[1756694547793,0.15773488,107740.0,107730.0,0.51370701]
[1756694548747,0.15366335,107740.0,107730.0,0.51370701]
[1756694549686,0.48896417,107740.0,107730.0,0.35330701]
[1756694549878,0.48665675,107740.0,107730.0,0.51366701]
[1756694551338,0.15135593,107740.0,107730.0,0.51366701]
[1756694551560,0.15366335,107740.0,107730.0,0.51366701]
[1756694551749,0.48896417,107740.0,107730.0,0.51366701]
[1756694552016,0.48665675,107740.0,107730.0,0.51366701]
[1756694552666,0.48665675,107740.0,107730.0,0.51362701]
[1756694554930,0.15135593,107740.0,107730.0,0.51362701]
[1756694555230,0.48896417,107740.0,107730.0,0.51362701]
[1756694555430,0.48665675,107740.0,107730.0,0.51362701]
[1756694557292,0.15135593,107740.0,107730.0,0.51362701]
[1756694557499,0.15366335,107740.0,107730.0,0.51362701]
[1756694557714,0.48896417,107740.0,107730.0,0.028967]
[1756694557917,0.48665675,107740.0,107730.0,0.028967]
[1756694558114,0.48665675,107740.0,107730.0,0.189207]
[1756694558310,0.48665675,107740.0,107730.0,0.161314]
[1756694559162,0.98219757,107740.0,107730.0,0.001074]
[1756694559359,0.67479475,107740.0,107730.0,0.001074]
[1756694559575,1.01479475,107740.0,107730.0,0.001074]
[1756694563494,0.51925393,107740.0,107730.0,0.001074]
[1756694563704,1.01479475,107740.0,107730.0,0.001074]
[1756694564370,1.01479475,107740.0,107730.0,7.4e-05]
[1756694564578,0.67949393,107740.0,107730.0,7.4e-05]
[1756694564783,1.01779475,107740.0,107730.0,7.4e-05]
[1756694564989,0.68249393,107740.0,107730.0,7.4e-05]
[1756694565412,1.01779475,107740.0,107730.0,7.4e-05]
[1756694565618,1.01775475,107740.0,107730.0,7.4e-05]
[1756694565995,1.01975475,107740.0,107730.0,7.4e-05]
[1756694566869,0.68445393,107740.0,107730.0,7.4e-05]
[1756694567076,1.01975475,107740.0,107730.0,7.4e-05]
[1756694569444,0.85955475,107740.0,107730.0,7.4e-05]
[1756694569707,1.01975475,107740.0,107730.0,7.4e-05]
[1756694575519,0.68441393,107740.0,107730.0,7.4e-05]
[1756694575740,1.01971475,107740.0,107730.0,7.4e-05]
[1756694577009,1.01971475,107740.0,107730.0,1e-08]
[1756694578277,1.01967475,107740.0,107730.0,1e-08]
[1756694578484,0.85955475,107740.0,107730.0,1e-08]
[1756694578695,0.52425393,107740.0,107730.0,1e-08]
[1756694578898,0.85955475,107740.0,107730.0,1e-08]
[1756694579758,0.52425393,107740.0,107730.0,1e-08]
[1756694579966,1.01967475,107740.0,107730.0,1e-08]
[1756694580699,0.68437393,107740.0,107730.0,1e-08]
[1756694580893,1.01967475,107740.0,107730.0,1e-08]
[1756694581660,0.68437393,107740.0,107730.0,1e-08]
[1756694581860,1.01967475,107740.0,107730.0,1e-08]
[1756694582302,0.85955475,107740.0,107730.0,1e-08]
[1756694582507,1.01963475,107740.0,107730.0,1e-08]
[1756694583126,0.85955475,107740.0,107730.0,1e-08]
[1756694583337,0.68433393,107740.0,107730.0,1e-08]
[1756694583539,1.01963475,107740.0,107730.0,1e-08]
[1756694588704,0.68433393,107740.0,107730.0,1e-08]
[1756694588911,1.01963475,107740.0,107730.0,1e-08]
[1756694589541,1.01959475,107740.0,107730.0,1e-08]
[1756694590168,0.52425393,107740.0,107730.0,1e-08]
[1756694590390,1.01959475,107740.0,107730.0,1e-08]
[1756694590621,0.18425393,107740.0,107730.0,1e-08]
[1756694590827,0.15635593,107740.0,107730.0,1e-08]
[1756694591057,0.15866335,107740.0,107730.0,0.12087502]
[1756694591479,0.15866335,107740.0,107730.0,0.28091502]
[1756694591679,0.15635593,107740.0,107730.0,0.28091502]
[1756694591891,0.15866335,107740.0,107730.0,0.28091502]
[1756694593809,0.15866335,107740.0,107730.0,0.35227502]
[1756694594603,0.15866335,107740.0,107730.0,0.19223502]
[1756694594836,0.15866335,107740.0,107730.0,0.35223502]
[1756694596943,0.15866335,107740.0,107730.0,0.19223502]
[1756694597182,0.15866335,107740.0,107730.0,0.35223502]
[1756694601860,0.15635593,107740.0,107730.0,0.35223502]
[1756694602505,0.15635593,107740.0,107730.0,0.68753584]
[1756694603108,0.15635593,107740.0,107730.0,0.87318514]
[1756694603313,0.15635593,107740.0,107730.0,0.68753584]
[1756694603932,0.15635593,107740.0,107730.0,0.35223502]
[1756694604101,0.15635593,107740.0,107730.0,0.68753584]
[1756694604499,0.15335593,107740.0,107730.0,0.68753584]
[1756694604913,0.15535593,107740.0,107730.0,0.68745584]
[1756694605281,0.15335593,107740.0,107730.0,0.68745584]
[1756694605433,0.15435593,107740.0,107730.0,0.68745584]
[1756694606014,0.15435593,107740.0,107730.0,0.52753584]
[1756694606235,0.15666335,107740.0,107730.0,0.35215502]
[1756694606953,0.15666335,107740.0,107730.0,0.3948334]
[1756694607150,0.15666335,107740.0,107730.0,0.2349134]
[1756694607373,0.15666335,107740.0,107730.0,0.3947934]
[1756694608019,0.15666335,107740.0,107730.0,0.2349134]
[1756694608489,0.15666335,107740.0,107730.0,0.3947934]
[1756694609350,0.15666335,107740.0,107730.0,0.2349134]
[1756694609521,0.15666335,107740.0,107730.0,0.35211502]
[1756694616066,0.49207458,107740.0,107730.0,0.35211502]
[1756694616358,0.48976716,107740.0,107730.0,0.35211502]
[1756694617010,0.15435593,107740.0,107730.0,0.35211502]
[1756694617233,0.15666335,107740.0,107730.0,0.35211502]
[1756694617486,0.15666335,107740.0,107730.0,0.35203502]
[1756694617718,0.49207458,107740.0,107730.0,0.35203502]
[1756694617943,0.48976716,107740.0,107730.0,0.35203502]
[1756694618317,0.15435593,107740.0,107730.0,0.35203502]
[1756694618490,0.49207458,107740.0,107730.0,0.35203502]
[1756694618699,0.48976716,107740.0,107730.0,0.35203502]
[1756694619302,0.48976716,107740.0,107730.0,0.19223502]
[1756694619482,0.48976716,107740.0,107730.0,0.35203502]
[1756694622068,0.82517839,107740.0,107730.0,0.19223502]
[1756694622220,0.82517839,107740.0,107730.0,0.35199502]
[1756694622433,0.48976716,107740.0,107730.0,0.35199502]
[1756694622632,0.82517839,107740.0,107730.0,0.35199502]
[1756694622835,0.48976716,107740.0,107730.0,0.35199502]
[1756694623058,0.82517839,107740.0,107730.0,0.19223502]
[1756694623271,0.82517839,107740.0,107730.0,0.15976001]
[1756694623475,0.98493839,107740.0,107730.0,1e-08]
[1756694623679,1.01283639,107740.0,107730.0,0.15976001]
[1756694623890,1.01283639,107740.0,107730.0,1e-08]
[1756694626019,0.67756757,107740.0,107730.0,1e-08]
[1756694626742,0.67752757,107740.0,107730.0,1e-08]
[1756694632680,1.01308121,107740.0,107730.0,1e-08]
[1756694632939,0.67752757,107740.0,107730.0,1e-08]
[1756694633142,0.18568378,107710.0,107700.0,0.2596933]
[1756694633316,0.52123742,107710.0,107700.0,0.32482188]
[1756694633546,0.52123742,107710.0,107700.0,0.33322188]
[1756694633750,0.52123742,107710.0,107700.0,0.24024187]
[1756694633952,0.52123742,107710.0,107700.0,0.23184187]
[1756694634125,0.52123742,107710.0,107700.0,0.07216187]
[1756694634456,0.52123742,107710.0,107700.0,0.23384187]
[1756694634603,0.52123742,107710.0,107700.0,0.16172757]
[1756694634807,0.52123742,107710.0,107700.0,0.15972757]
[1756694635342,0.51623742,107710.0,107700.0,0.15972757]
[1756694638008,0.54414042,107710.0,107700.0,4.757e-05]
[1756694638206,0.20858678,107710.0,107700.0,0.15968757]
[1756694638436,0.54414042,107710.0,107700.0,0.15968757]
[1756694638607,0.54414042,107710.0,107700.0,4.757e-05]
[1756694638830,0.54414042,107710.0,107700.0,0.15968757]
[1756694640036,0.54414042,107710.0,107700.0,4.757e-05]
[1756694640266,0.54414042,107710.0,107700.0,0.15968757]
[1756694640709,0.20858678,107710.0,107700.0,0.15968757]
[1756694640944,0.54414042,107710.0,107700.0,4.757e-05]
[1756694641308,0.54414042,107710.0,107700.0,0.15968757]
[1756694641436,0.54614042,107710.0,107700.0,4.757e-05]
[1756694641632,0.54614042,107710.0,107700.0,0.15968757]
[1756694642259,0.54514042,107710.0,107700.0,0.15968757]
[1756694642663,0.21058678,107710.0,107700.0,0.15968757]
[1756694642883,0.54514042,107710.0,107700.0,0.15968757]
[1756694643086,0.54614042,107710.0,107700.0,0.15968757]
[1756694646353,0.18268378,107710.0,107700.0,0.25266758]
[1756694646564,0.18168378,107710.0,107700.0,0.25266758]
[1756694646939,0.18268378,107710.0,107700.0,0.25266758]
[1756694647382,0.18268378,107710.0,107700.0,0.09302758]
[1756694647526,0.18168378,107710.0,107700.0,0.25262758]
[1756694647734,0.18168378,107710.0,107700.0,0.09302758]